Cogmind - Beta 14 @@@ ROGUE MODE // 2024.12.20 @ 16:17:14 Player: abnormality Result: Destroyed by G-47 Trooper with Particle Gun Performance ------------- Evolutions (2) 1000 Regions Visited (4) 800 Robots Destroyed (24) 120 Value Destroyed (653) 653 Prototype IDs (0) 0 Alien Tech Used (0) 0 Bonus (0) 0 TOTAL SCORE: 2573 Bonus ------- None Cogmind --------- Core Integrity 0/550 Matter 222/300 Energy 95/100 System Corruption 0% Temperature Cool (9) Movement Core (350) Ox6 Location -8/Materials Parts ------- > --- POWER (2) -------- (None) > --- PROPULSION (4) --- (None) > --- UTILITY (3) ------ Large Storage Unit > --- WEAPON (2) ------- (None) > --- INVENTORY (15) --- Large Storage Unit Hacking Suite Light Cannon Peak State ------------ > --- POWER ------------ Ion Engine Ion Engine > --- PROPULSION ------- Aluminum Leg Aluminum Leg Aluminum Leg Improved Aluminum Leg > --- UTILITY ---------- Large Storage Unit Improved Terrain Scanner Targeting Computer > --- WEAPON ----------- Spread Laser Heavy Particle Cannon > --- INVENTORY -------- Ion Engine Aluminum Leg Aluminum Leg Large Storage Unit Hacking Suite Assault Rifle Light Cannon Light Cannon [Rating: 18] Favorites ----------- Power Ion Engine Engine Ion Engine Propulsion Aluminum Leg Leg Aluminum Leg Utility Large Storage Unit Device Improved Terrain Scanner Storage Large Storage Unit Processor Targeting Computer Weapon Assault Rifle Energy Gun Spread Laser Energy Cannon Heavy Particle Cannon Ballistic Gun Assault Rifle Ballistic Cannon Light Cannon Build | -11 -10 -10 -9 -8 ------- Run | Yrd Mat Min Mat Mat Slots Evolved 4 | . . . 2 2 Power 1 | . . . . 1 Propulsion 2 | . . . 2 . Utility 1 | . . . . 1 Weapon . | . . . . . Parts Attached 29 | 8 2 . 5 14 Power 3 | 1 . . . 2 Engine 3 | 1 . . . 2 Core . | . . . . . Reactor . | . . . . . Propulsion 8 | 2 . . 3 3 Treads . | . . . . . Leg 8 | 2 . . 3 3 Wheel . | . . . . . Hover . | . . . . . Flight . | . . . . . Utility 4 | 2 1 . . 1 Device 1 | 1 . . . . Storage 2 | 1 1 . . . Processor 1 | . . . . 1 Hackware . | . . . . . Protection . | . . . . . Artifact . | . . . . . Weapon 14 | 3 1 . 2 8 Energy Gun 3 | 1 . . . 2 Energy Cannon 3 | . . . . 3 Ballistic Gun 4 | 2 . . 1 1 Ballistic Cannon 4 | . 1 . 1 2 Launcher . | . . . . . Special Weapon . | . . . . . Impact Weapon . | . . . . . Slashing Weapon . | . . . . . Piercing Weapon . | . . . . . Special Melee Weapon . | . . . . . Unidentified Prototypes . | . . . . . Parts Lost 17 | . . . 2 15 Power 3 | . . . . 3 Propulsion 8 | . . . 2 6 Utility 2 | . . . . 2 Weapon 4 | . . . . 4 Highest Loss Streak 15 | . . . 1 15 To Critical Strikes . | . . . . . Average Slot Usage (%) 96 | . 100 100 97 71 Engine 12 | . 14 14 11 11 Leg 31 | . 28 28 41 28 Device 12 | . 14 14 11 4 Storage 12 | . 14 14 11 9 Ballistic Gun 14 | . 18 14 11 4 Ballistic Cannon 9 | . 9 14 11 3 Peak Build Rating 18 | 9 10 10 13 18 Average Rating 9 | 5 9 10 11 11 On Entrance 8 | . 9 10 10 11 Naked Turns . | . . . . . Heaviest Build 40 | 15 31 31 31 40 Greatest Support 43 | 20 20 20 43 43 Greatest Overweight (x) 6 | . 1 1 1 6 Average Overweight (x) . | . . 1 . . Largest Inventory Capacity 15 | 8 15 15 15 15 Average Capacity 14 | 7 14 15 15 15 Most Carried 13 | 5 10 10 13 8 Average Carried 7 | 2 6 10 9 5 Final Capacity 15 | 8 15 15 15 15 Final Carried 10 | 2 10 10 8 3 Class Distribution -------------------- 95% | Mutant 4% | Scavenger-Mutant Dominant Class ---------------- Mutant | -10/Materials Mutant | -10/Mines Mutant | -9/Materials Scavenger-Mutant | -8/Materials Resources | -11 -10 -10 -9 -8 ----------- Run | Yrd Mat Min Mat Mat Matter Collected 698 | 279 57 24 268 70 Remotely . | . . . . . Salvage Created 803 | 72 75 . 422 234 Parts 61 | 7 5 . 31 18 Haulers Intercepted . | . . . . . Recyclers Shooed . | . . . . . Parts Field Recycled . | . . . . . Retrieved Matter . | . . . . . Parts Self-Destructed . | . . . . . Prevented . | . . . . . Kills | -11 -10 -10 -9 -8 ------- Run | Yrd Mat Min Mat Mat Combat Hostiles Destroyed 18 | . 3 . 8 7 Guns 7 | . 2 . 3 2 Cannons 9 | . 1 . 5 3 AOE 2 | . . . . 2 Classes Destroyed 8 | 2 2 . 2 2 Builder 1 | . . . . 1 Tunneler 1 | 1 . . . . Recycler 2 | 1 . . 1 . Watcher 2 | . . . 2 . Swarmer 5 | . 2 . . 3 Grunt 8 | . 1 . 5 2 Brawler 1 | . . . . 1 Sentry 4 | . . . 3 1 Best Kill Streak 8 | 2 2 . 4 8 Combat Bots Only 7 | . 2 . 4 7 Max Kills in Single Turn 3 | 1 1 . 1 3 Gunslinging . | . . . . . Exploded 2 | . . . . 2 Melee . | . . . . . Uniques/NPCs Destroyed . | . . . . . Combat | -11 -10 -10 -9 -8 -------- Run | Yrd Mat Min Mat Mat Hostile Shots Fired 242 | . 18 . 52 172 Missed 70 | . 7 . 11 52 Damage Taken 2297 | . 96 . 564 1637 Core 635 | . 17 . 65 553 Absorbed by Shields . | . . . . . Core Remaining (%) 92 | 100 . 93 83 . Volleys Fired 56 | 6 9 . 27 14 Largest 2 | 2 2 . 2 2 Hottest 140 | 40 55 . 55 140 Shots Fired 107 | 12 18 . 54 23 Gun 62 | 12 9 . 27 14 Cannon 45 | . 9 . 27 9 Launcher . | . . . . . Special . | . . . . . Kinetic 94 | 12 18 . 54 10 Thermal 13 | . . . . 13 Explosive . | . . . . . Electromagnetic . | . . . . . Robot Hit Streak 10 | 4 5 . 10 5 Robot Miss Streak 4 | 2 2 . 3 4 Penetration Max . | . . . . . Secondary Targets . | . . . . . Shots Hit Robots 59 | 7 10 . 27 15 Core Hits 40 | 3 4 . 16 17 Critical Kills . | . . . . . Critical Parts Destroyed . | . . . . . Critical Strikes . | . . . . . Melee Attacks . | . . . . . Impact . | . . . . . Slashing . | . . . . . Piercing . | . . . . . Sneak Attacks . | . . . . . Combat Hostiles . | . . . . . Follow-up Attacks . | . . . . . Damage Inflicted 1200 | 81 139 . 450 530 Guns 464 | 81 85 . 166 132 Cannons 457 | . 54 . 284 119 Explosions 279 | . . . . 279 Melee . | . . . . . Ramming . | . . . . . Kinetic 747 | 81 139 . 450 77 Thermal 453 | . . . . 453 Explosive . | . . . . . Electromagnetic . | . . . . . Impact . | . . . . . Slashing . | . . . . . Piercing . | . . . . . Highest Corruption . | . . . . . Average Corruption . | . . . . . Corruption Purged . | . . . . . Corruption Blocked . | . . . . . Overload Shots . | . . . . . Overflow Damage 77 | . . . . 77 Projectiles . | . . . . . Explosions 77 | . . . . 77 Melee . | . . . . . Knockbacks 1 | . . . 1 . Impact . | . . . . . Kinetic 1 | . . . 1 . Secondary . | . . . . . Self-Inflicted Damage 78 | . . . . 78 Shots 1 | . . . . 1 Rammed . | . . . . . Targets Rammed . | . . . . . Kicked . | . . . . . Crushed . | . . . . . Highest Temperature 531 | . . . 22 531 Average Temperature 179 | . . . 6 236 Received Heat Transfer 1023 | . 18 . 231 774 Effects 7 | . . . . 7 Shutdowns 1 | . . . . 1 Energy Bleed 2 | . . . . 2 Interference 2 | . . . . 2 Matter Decay 1 | . . . . 1 Damage (minor) 1 | . . . . 1 Siege Activations . | . . . . . Robots Corrupted . | . . . . . Combat Hostiles . | . . . . . Parts Fried . | . . . . . Impact Corruptions . | . . . . . Robots Melted . | . . . . . Combat Hostiles . | . . . . . Parts Melted . | . . . . . Heat Transferred 443 | . . . . 443 Parts Sabotaged . | . . . . . Parts Stolen . | . . . . . Parts Stripped . | . . . . . Power Chain Reactions . | . . . . . Alert | -11 -10 -10 -9 -8 ------- Run | Yrd Mat Min Mat Mat Peak Influence 336 | 10 141 . 336 296 Initial 59 | . 6 . . 59 Average 72 | 2 19 . 181 167 Maximum Alert Level 1 | . . . 1 1 Low Security (%) 82 | 100 100 100 46 54 Level 1 17 | . . . 53 45 Level 2 . | . . . . . Level 3 . | . . . . . Level 4 . | . . . . . Level 5 . | . . . . . High Security . | . . . . . Max Security . | . . . . . Squads Dispatched 5 | . 2 . . 3 Investigation . | . . . . . Extermination . | . . . . . Reinforcement 5 | . 2 . . 3 Assault . | . . . . . Garrison . | . . . . . Intercept . | . . . . . Searches Triggered . | . . . . . Construction Impeded . | . . . . . Haulers Reinforced . | . . . . . Active Scanning Responses . | . . . . . Cargo Convoy Interrupts . | . . . . . Stealth | -11 -10 -10 -9 -8 --------- Run | Yrd Mat Min Mat Mat Distress Signals 4 | . 1 . 1 2 Communications Jammed . | . . . . . Distress Signals . | . . . . . Times Spotted 43 | . 11 . 13 19 Peak Tracking Total 13 | . 3 . 7 13 Tactical Retreats 5 | . 1 . 2 2 Traps | -11 -10 -10 -9 -8 ------- Run | Yrd Mat Min Mat Mat Traps Triggered 1 | . . . . 1 Indirectly . | . . . . . Trap Hack Attempts . | . . . . . Triggered . | . . . . . Disarmed . | . . . . . Reprogrammed . | . . . . . Reused . | . . . . . Traps Extracted . | . . . . . Installed . | . . . . . Triggered . | . . . . . Machines | -11 -10 -10 -9 -8 ---------- Run | Yrd Mat Min Mat Mat Machines Disabled 2 | . . . . 2 Max in Single Turn 1 | . . . . 1 Machines Repaired . | . . . . . Machines Dismantled . | . . . . . Machines Sabotaged . | . . . . . Overloaded Fab Kills . | . . . . . Hacking | -11 -10 -10 -9 -8 --------- Run | Yrd Mat Min Mat Mat Machines Accessed 7 | . 3 . 4 . Terminals 5 | . 3 . 2 . Fabricators . | . . . . . Repair Stations . | . . . . . Recycling Units 1 | . . . 1 . Scanalyzers 1 | . . . 1 . Garrison Access . | . . . . . Total Hacks 19 | . 6 . 13 . Successful 11 | . 2 . 9 . Failed 8 | . 4 . 4 . Catastrophic 2 | . 2 . . . Database Lockouts . | . . . . . Manual . | . . . . . Terminals 9 | . 6 . 3 . Fabricators . | . . . . . Repair Stations . | . . . . . Recycling Units 6 | . . . 6 . Scanalyzers 4 | . . . 4 . Garrison Access . | . . . . . Terminal Hacks 3 | . 2 . 1 . Locate Traps 2 | . 1 . 1 . Investigation Status 1 | . 1 . . . Fabricator Hacks . | . . . . . Repair Station Hacks . | . . . . . Recycling Unit Hacks 6 | . . . 6 . Recycle Component 4 | . . . 4 . Process 1 | . . . 1 . Retrieve Matter 1 | . . . 1 . Scanalyzer 2 | . . . 2 . Insert Component 1 | . . . 1 . Analyze 1 | . . . 1 . Garrison Access Hacks . | . . . . . Unauthorized Hacks . | . . . . . Terminals . | . . . . . Fabricators . | . . . . . Repair Stations . | . . . . . Recycling Units . | . . . . . Scanalyzers . | . . . . . Garrison Access . | . . . . . Data Cores Recovered . | . . . . . Used . | . . . . . Hacking Detections 7 | . 3 . 4 . Full Trace Events 1 | . 1 . . . Feedback Events . | . . . . . Feedback Blocked . | . . . . . Robot Schematics Acquired . | . . . . . Robots Built . | . . . . . Authchips . | . . . . . Time . | . . . . . Total Robot Build Rating . | . . . . . Part Schematics Acquired 1 | . . . 1 . Parts Built . | . . . . . Authchips . | . . . . . Time . | . . . . . Total Part Build Rating . | . . . . . Parts Repaired . | . . . . . Time . | . . . . . Parts Recycled 4 | . . . 4 . Recycled Matter 378 | . . . 378 . Retrieved Matter 471 | . . . 471 . Retrieved Components . | . . . . . Parts Scanalyzed 1 | . . . 1 . Part Schematics Acquired 1 | . . . 1 . Parts Damaged . | . . . . . Bothacking | -11 -10 -10 -9 -8 ------------ Run | Yrd Mat Min Mat Mat Used RIF Installer . | . . . . . Robots Hacked . | . . . . . Non-combat . | . . . . . Combat . | . . . . . Robot Hacks Applied . | . . . . . Relay Couplers Released . | . . . . . Fabnet Peak Effective % . | . . . . . Robots Rewired . | . . . . . Allies Hacked . | . . . . . Hacks Repelled . | . . . . . Allies | -11 -10 -10 -9 -8 -------- Run | Yrd Mat Min Mat Mat Total Allies . | . . . . . Largest Group . | . . . . . Highest-Rated Group . | . . . . . Highest-Rated Ally . | . . . . . Total Orders . | . . . . . Ally Attacks . | . . . . . Total Damage . | . . . . . Kills . | . . . . . Allies Corrupted . | . . . . . Allies Melted . | . . . . . Intel | -11 -10 -10 -9 -8 ------- Run | Yrd Mat Min Mat Mat Robot Analysis Total . | . . . . . Derelict Logs Recovered . | . . . . . Drone Launches . | . . . . . Drone Recoveries . | . . . . . Exploration | -11 -10 -10 -9 -8 ------------- Run | Yrd Mat Min Mat Mat Turns Passed 1799 | 110 879 176 466 168 Spaces Moved 887 | 74 380 85 277 71 Core 23 | 19 . . . 4 Treads . | . . . . . Legs 864 | 55 380 85 277 67 Wheels . | . . . . . Hover . | . . . . . Flight . | . . . . . Fastest Speed 50 | 50 120 190 120 120 Average Speed 159 | 102 188 190 131 143 Slowest Speed 350 | 120 190 190 190 350 Overloaded Moves . | . . . . . Propulsion Burnouts . | . . . . . Robots Hopped . | . . . . . Cave-ins Triggered . | . . . . . Exploration Rate (%) 23 | 5 57 27 17 11 Regions Visited 4 Branch Regions 1 Pre-discovered Areas . | . . . . . Known Exits Taken . | . . . . . Unknown Exits Taken 4 | 1 1 1 1 . Scrap Searched . | . . . . . Spaces Dug . | . . . . . Terrain Destroyed 31 | . . . . 31 Melee . | . . . . . Projectile 2 | . . . . 2 AOE 29 | . . . . 29 Terrain Rammed . | . . . . . Walls Destroyed . | . . . . . Machines Disabled . | . . . . . Actions | -11 -10 -10 -9 -8 --------- Run | Yrd Mat Min Mat Mat Total 1162 | 96 525 100 324 117 Wait 165 | . 127 16 11 11 Move 883 | 73 379 84 276 71 Hop . | . . . . . Pick Up 25 | 9 8 . 5 3 Fast Attach . | . . . . . Attach 22 | 7 . . 3 12 Detach 4 | . . . . 4 Swap 7 | 1 2 . 2 2 Drop . | . . . . . Fire 56 | 6 9 . 27 14 Melee . | . . . . . Ram . | . . . . . Kick . | . . . . . Crush . | . . . . . Escape Stasis . | . . . . . Rewire . | . . . . . Trap . | . . . . . Miscellaneous . | . . . . . Route ------- -11/Scrapyard -10/Materials -10/Mines -9/Materials -8/Materials History --------- Turn | Location | Event 3 | -11/Scrapyard | Discovered new exit (range 15) 111 | -11/Scrapyard | Entered Materials 262 | -10/Materials | Discovered new exit (range 11) 317 | -10/Materials | Build established: Mutant 990 | -10/Materials | Entered Mines 1010 | -10/Mines | Assembled infested the area 1147 | -10/Mines | Discovered new exit (range 11) 1166 | -10/Mines | Entered Materials 1166 | -9/Materials | Evolved 2 slots: Propulsion x2 1566 | -9/Materials | Discovered new exit (range 15) 1632 | -9/Materials | Entered another Materials area 1632 | -8/Materials | Evolved 2 slots: Power x1, Utility x1 1760 | -8/Materials | Destroyed 7 combat bots 1784 | -8/Materials | Core integrity fell below 50% 1795 | -8/Materials | Core integrity fell below 20% 1800 | -8/Materials | Destroyed by G-47 Trooper with Particle Gun Last Messages --------------- 01787_ U-05 Engineer lays Concrete. 01788_ Penetrated by Slug. 01788_ Spread Laser destroyed. 01789_ U-05 Engineer builds a Wall. 01789_ U-05 Engineer lays Concrete. 01789_ K-01 Serf collects debris. 01790_ U-05 Engineer builds a Wall. 01791_ U-05 Engineer lays Concrete. 01791_ Slug penetrates Wall. 01792_ U-05 Engineer lays Concrete. 01792_ M-13 Machinist repairs G-47 Trooper. 01792_ U-05 Engineer destroyed. 01792_ K-01 Serf collects debris. 01793_ R-06 Scavenger collects Lgt. Armor Plating. 01795_ U-05 Engineer lays Concrete. 01796_ Acquired 13 matter. 01797_ U-05 Engineer lays Concrete. 01798_ Slug penetrates Wall. 01799_ U-05 Engineer lays Concrete. 01799_ U-05 Engineer builds a Wall. Map ----- +----------------------------------------------------+ | ?????????????????????????????????????????????????? | | ?????????????????????????????????????????????????? | | ?????????????????????????????????????????????????? | | ?????????????????????????????????????????????????? | | ?????????????????????????????????????????????????? | | ?????????????????????????????????????????????????? | | ?????????????????????????????????????????????????? | | ?????????????????????????????????????????????????? | | ?????????????????????????????????????????????????? | | ?????????????????????????????????????????????????? | | ?????????????????????????????????????????????????? | | ?????????????????????????????????????????????????? | | ?????????????????????????????????????????????????? | | ?? ????????????????????????????????????????????? | | # ????????????????????????????????????????????? | | %????????????????????????????????????????????? | | ????????????????????????????????????????????? | | ????????????????????????????????????????????? | | ?????#??????????????????????????????????????? | | ????#############???????????????????????????? | | #???# #???????????????????????????? | | # #???# """ #???????????????????????????? | | # #???# """ #???????????????????????????? | | # #???# """ ############### #?????????? | | + #???# "Y" # ????????? | | # #??## """ # |@ ????????? | | # #### ! # * ! ????????? | | # ##"#""""""="## gg ! ????????? | | [### " % g ?????????? | | # % %+ ; g #############?????????? | | # #### % r; ^ ^ g #?????????????????????? | | # ?#%#=! u ; ^ #?????????????????????? | | # ?# " ; "%""%"" #?????????????????????? | | # ?# " # """"""" o#?????????????????????? | | # ###""##/### """"""" #?????????????????????? | | # !| """"""" #?????????????????????? | | # "%""""" o #?????????????????????? | | # #?????????????????????? | | ####+########## #?????????????????????? | | ??????????????# ###???????????????????? | | ????? ????????# ??????????????????? | | ???????#??????# ####???????????????????? | | ???????######## "T" #??????????????????????? | | ???????# # ######+##??????????????????????? | | ???????#""" # #??????????????????????????????? | | ????? ?#""" + #??????????????????????????????? | | ???????#""" # #??????????????????????????????? | | ???? ??#""" # #??????????????????????????????? | | ???????# # #?? ???????????????????????????? | | ???????############????????"?????????????????????? | +----------------------------------------------------+ Best States ------------- Heat Dissipation 31 Energy Generation 15 Energy Capacity 400 Matter Stores 300 Matter Capacity 300 Sight Range 16 Terrain Scan Range 16 Terrain Scan Density 10 Evasion (%) 55 Targeting Accuracy 5 Item Schematics ----------------- Lgt. Cannon | -9/Materials | Scanalyzed Robot Schematics ------------------ None Fabricated ------------ Nothing Alien Tech Used ----------------- None Achievements -------------- None Challenges ------------ None Game ------ Seed ProtonChainDevice Manual? 0 Play Time 00:16:19 Cumulative 10.5 hours Start 2024.12.20 @ 16:01:29 End 2024.12.20 @ 16:17:14 Sessions 1 Manual Loads 0 Difficulty Rogue Special Mode None Game No. 57 Rogue 57 Adventurer 0 Explorer 0 Win Type - Total 0 Types 0/0/0/0/0/0/0/0/0 Lore% 10 Gallery% 16 Achievement% 19 Wizard Run 0 Options --------- Layout 0 ASCII 0 Keyboard 0 Movement Mouse Keybinds 0 Fullscreen 1 Font 18/SmallcapsGlow Map View 38x25 Zoom Use 99% Tactical HUD 1 Map Filters NONE Filters NONE Steam 1 RUN: 02263255-fa48-475e-a226-0561bda73302